bitfinex/quotes_ETHUSD_20260305
["timestamp","ask_amount","ask_price","bid_price","bid_amount"]
[1772724770111,2.16603871,2072.6,2071.3,1.20692065]
[1772724770310,2.16603871,2072.6,2071.2,4.82800098]
[1772724770311,3.48226083,2072.5,2071.2,4.82800098]
[1772724770514,3.48226083,2072.5,2070.4,0.00882111]
[1772724770515,2.27598822,2072.3,2070.6,2.12461108]
[1772724770729,3.67679898,2072.4,2070.5,2.11289095]
[1772724770730,2.57901192,2071.9,2070.5,0.90545314]
[1772724770872,2.27598822,2071.8,2070.5,0.90545314]
[1772724771971,2.57901192,2071.9,2070.6,2.12461108]
[1772724772300,1.20668018,2071.8,2070.7,3.33193227]
[1772724772678,1.20668018,2071.8,2070.7,4.16593227]
[1772724773620,2.27598822,2071.7,2070.5,0.90545314]
[1772724774178,3.48278489,2071.6,2070.1,4.83045116]
[1772724774383,3.48278489,2071.6,2070.2,2.12571108]
[1772724775208,1.20679667,2071.6,2070.2,2.12571108]
[1772724775609,2.27598822,2071.5,2070.3,0.834]
[1772724775912,2.27598822,2071.5,2070.2,2.12571108]
[1772724776697,1.20691319,2071.4,2070.3,3.33216554]
[1772724776902,1.20673842,2071.7,2070.4,2.12461108]
[1772724777306,2.27598822,2071.6,2070.3,1.20755446]
[1772724777519,2.27598822,2071.6,2070.4,0.834]
[1772724777912,2.27598822,2071.6,2070.9,0.0011]
[1772724778598,1.20685493,2071.5,2070.9,0.0011]
[1772724779619,4.82718671,2071.7,2070.9,0.0011]
[1772724780522,4.89675034,2071.8,2070.9,0.0011]
[1772724780523,1.20667618,2071.9,2070.9,0.0011]
[1772724780823,1.111,2072.3,2071.1,2.12461108]
[1772724780824,2.31742248,2072.3,2071.1,2.12461108]
[1772724781019,2.31742248,2072.3,2070.9,1.20825724]
[1772724781020,2.27598822,2072.2,2070.9,1.20825724]
[1772724781196,2.27598822,2072.2,2070.9,1.20830095]
[1772724781594,2.27598822,2072.2,2070.9,3.33291203]
[1772724782088,2.27598822,2072.2,2070.9,0.0011]
[1772724782286,2.27598822,2072.2,2070.9,1.20830278]
[1772724782490,2.27598822,2072.2,2070.9,0.0011]
[1772724782690,2.27598822,2071.8,2070.9,0.0011]
[1772724782886,5.1418109,2071.9,2070.6,1.20847173]
[1772724782887,2.27598822,2071.6,2070.6,1.20847173]
[1772724783299,1.111,2071.7,2070.6,1.20847173]
[1772724783501,2.57901192,2071.9,2070.6,3.33308281]
[1772724784324,2.27598822,2072.0,2070.7,2.12461108]
[1772724784523,1.20650547,2072.1,2070.7,2.12461108]
[1772724784692,1.20650547,2072.1,2070.9,2.12461108]
[1772724784897,0.001,2072.4,2070.9,2.12461108]
[1772724785212,1.20734156,2072.4,2071.1,2.12461108]
[1772724785399,0.001,2072.4,2071.3,2.12461108]
[1772724786193,5.93389591,2073.5,2071.8,0.14948499]
[1772724786194,1.20572116,2073.5,2071.8,0.14948499]
[1772724786417,1.20572116,2073.5,2072.0,2.12461108]
[1772724786823,0.001,2073.6,2072.4,2.12461108]
[1772724787126,0.001,2073.6,2072.6,2.12461108]
[1772724787524,0.001,2073.6,2072.7,0.831]
[1772724787919,0.001,2073.6,2072.9,2.12461108]
[1772724788831,0.001,2073.6,2073.0,1.20598166]
[1772724789512,0.001,2073.6,2072.5,4.82500641]
[1772724789513,0.001,2073.6,2072.6,1.20621441]
[1772724789910,0.001,2073.6,2072.7,2.12461108]
[1772724790307,0.001,2073.6,2072.5,1.2062414]
[1772724790508,0.001,2073.6,2072.5,2.0372414]
[1772724790711,0.001,2073.6,2072.6,2.12461108]
[1772724791207,0.001,2073.6,2072.5,2.0372414]
[1772724791208,0.001,2073.6,2072.5,1.2062414]
[1772724791535,0.001,2073.6,2072.6,0.831]
[1772724791832,0.001,2073.4,2072.7,2.95561108]
[1772724792030,0.001,2073.4,2072.7,2.12461108]
[1772724792332,0.001,2073.4,2072.8,0.832]
[1772724792540,0.001,2073.4,2072.9,0.832]
[1772724792901,0.001,2073.6,2072.9,0.832]
[1772724792902,0.001,2073.6,2073.1,0.001]
[1772724793108,0.001,2073.8,2073.1,2.12461108]
[1772724793300,0.001,2074.6,2073.1,2.12461108]
[1772724793513,1.20608488,2074.6,2073.1,2.12461108]
[1772724793800,0.001,2075.2,2073.1,2.12461108]
[1772724793801,1.20484331,2075.0,2073.6,0.14948499]
[1772724794132,1.20484331,2075.0,2073.8,2.12461108]
[1772724794340,2.27598822,2074.9,2073.7,0.79878071]
[1772724794905,4.81905484,2075.1,2073.8,0.832]
[1772724794906,1.20476121,2075.1,2073.8,0.832]
[1772724795101,1.20476121,2075.1,2073.8,1.63086394]
[1772724795307,1.20476121,2075.1,2073.8,0.79886394]
[1772724795508,2.27598822,2075.0,2073.8,0.79886394]
[1772724796238,1.20476121,2075.1,2073.8,2.92347502]
[1772724796445,0.001,2075.2,2073.9,0.832]
[1772724796746,0.001,2075.6,2074.2,2.12461108]
[1772724797043,0.001,2075.6,2074.4,2.12461108]
[1772724797657,0.001,2075.6,2074.1,2.5964695]
[1772724797812,0.001,2075.6,2074.2,2.12461108]
[1772724798009,0.001,2075.6,2074.1,3.4284695]
[1772724798010,0.001,2075.6,2074.4,2.12461108]
[1772724798405,0.001,2075.6,2074.5,0.832]
[1772724798612,0.001,2075.6,2074.6,2.95661108]
[1772724798810,0.001,2076.3,2074.7,2.10386331]
[1772724799213,0.001,2076.3,2074.9,2.10386331]
[1772724799519,2.24919802,2076.3,2074.9,2.10386331]
[1772724799715,0.001,2076.3,2074.9,2.10386331]
[1772724800130,0.001,2076.3,2075.1,2.10386331]
[1772724800522,0.001,2076.3,2075.0,0.79554183]
[1772724800719,2.24919802,2076.3,2075.0,0.79554183]
[1772724801243,4.811997,2076.3,2075.0,0.79554183]
[1772724801415,0.001,2076.3,2075.1,2.10386331]
[1772724802146,0.001,2076.3,2075.1,2.90222678]
[1772724802316,2.57093988,2077.1,2075.2,2.2533483]
[1772724802516,0.90896551,2077.2,2075.2,2.2533483]
[1772724802810,0.90896551,2077.2,2075.3,0.83]
[1772724803031,2.24819802,2077.1,2075.4,2.10386331]
[1772724804552,3.15716353,2077.2,2075.5,0.822]
[1772724804872,2.24819802,2077.1,2075.5,2.10386331]
[1772724805166,0.001,2076.1,2075.5,2.10386331]
[1772724805366,0.001,2076.1,2075.2,2.10386331]
[1772724805685,3.15716353,2077.2,2075.2,2.2533483]
[1772724805886,0.90896551,2077.2,2075.2,2.2533483]
[1772724806035,0.90896551,2077.2,2075.1,1.61836347]
[1772724806036,3.15716353,2077.2,2075.6,2.10386331]
[1772724806236,3.15716353,2077.2,2075.1,2.90222678]
[1772724806237,2.24819802,2077.1,2075.1,2.90222678]
[1772724806438,2.24819802,2076.8,2075.2,2.10386331]
[1772724807554,2.24819802,2076.8,2075.4,2.21724145]
[1772724807962,3.09460029,2077.2,2075.4,2.21724145]
[1772724808275,2.18563478,2077.0,2075.4,2.21724145]
[1772724808438,0.90896551,2077.2,2075.4,2.21724145]
[1772724808638,0.90896551,2077.2,2075.3,0.79828653]
[1772724808639,0.90896551,2077.2,2075.6,2.21724145]
[1772724808859,0.90896551,2077.2,2076.0,2.21724145]
[1772724811252,2.18563478,2077.1,2075.6,2.21724145]
[1772724811442,0.90896551,2077.2,2075.3,0.79828653]
[1772724811443,2.18563478,2077.0,2075.3,0.79828653]
[1772724811644,2.18186671,2078.2,2075.3,0.79828653]
[1772724811646,1.63105445,2079.6,2078.3,0.91643461]
[1772724811951,1.63105445,2079.6,2075.4,2.488689]
[1772724811952,1.63105445,2079.3,2078.1,0.25121914]
[1772724812472,0.73962945,2079.4,2078.1,2.46846059]
[1772724813348,1.41078036,2080.2,2078.5,2.21724145]
[1772724813349,1.6293771,2080.1,2078.5,2.21724145]
[1772724813548,4.9214722,2080.1,2078.5,2.21724145]
[1772724813789,0.72929612,2079.8,2078.2,2.48267167]
[1772724814075,0.72929612,2079.8,2078.1,2.46846059]
[1772724814076,2.18563478,2079.8,2078.1,2.46846059]
[1772724814275,2.18563478,2079.6,2078.1,0.25121914]
[1772724814643,2.18563478,2079.6,2078.1,2.46846059]
[1772724815171,1.41178035,2079.9,2078.1,2.46846059]
[1772724815570,1.41178035,2079.9,2078.3,2.21724145]
[1772724815571,0.001,2079.9,2078.3,2.21724145]
[1772724815742,0.001,2079.9,2078.5,2.21724145]
[1772724816144,3.59741513,2079.9,2078.5,2.21724145]
[1772724816444,3.59741513,2079.9,2078.1,0.25121914]
[1772724816445,2.18562113,2079.8,2078.1,0.25121914]
[1772724816639,2.18562113,2079.8,2078.1,2.46846059]
[1772724817545,0.001,2079.4,2078.1,2.46846059]
[1772724817952,2.18347159,2079.4,2077.6,2.21724145]
[1772724818547,2.18347159,2079.4,2077.8,2.21724145]
[1772724818548,2.18032344,2079.4,2077.8,2.21724145]
[1772724818871,0.001,2079.4,2077.8,2.21724145]
[1772724819699,0.001,2079.4,2078.0,2.21724145]
[1772724819988,0.001,2079.4,2078.3,2.21724145]
[1772724820555,0.001,2079.4,2078.5,2.21724145]
[1772724820785,0.001,2079.4,2078.7,2.21724145]
[1772724821083,0.001,2079.9,2078.6,2.21724145]
[1772724821649,3.24605762,2080.4,2078.6,2.21724145]
[1772724821852,0.68325864,2080.4,2078.6,2.21724145]
[1772724822062,0.001,2080.5,2078.6,2.21724145]
[1772724822291,0.001,2080.5,2078.8,2.21724145]
[1772724822819,0.001,2080.5,2079.0,2.21724145]
[1772724822962,0.001,2080.5,2079.4,2.21724145]
[1772724823164,0.35769014,2081.1,2079.5,2.21724145]
[1772724823585,0.72968861,2081.0,2079.5,2.21724145]
[1772724823771,2.92048912,2081.1,2078.5,0.802]
[1772724823772,3.29248759,2080.8,2079.0,2.21724145]
[1772724824295,0.065536,2080.8,2079.0,2.21724145]
[1772724824590,0.7285646,2080.7,2079.0,2.21724145]
[1772724825304,0.72259818,2080.4,2079.0,2.21724145]
[1772724825474,2.56279898,2080.5,2078.6,2.21724145]
[1772724825475,0.78813418,2080.3,2078.6,2.21724145]
[1772724825798,0.78813418,2080.3,2077.6,2.25102716]
[1772724825799,1.33495938,2079.8,2077.4,2.54837845]
[1772724826001,1.33495938,2079.8,2077.7,0.065536]
[1772724826200,0.065536,2079.2,2077.8,2.21724145]
[1772724826577,0.7822184,2079.2,2077.8,2.21724145]
[1772724826983,3.34501738,2079.2,2077.8,2.21724145]
[1772724827171,3.34501738,2079.2,2077.4,2.54837845]
[1772724827673,2.56279898,2078.9,2077.4,2.54837845]
[1772724828510,0.065536,2078.8,2077.4,2.54837845]
[1772724828680,0.065536,2079.2,2077.4,2.54837845]
[1772724829078,3.31192901,2079.2,2077.4,2.54837845]
[1772724829277,0.7646524,2079.2,2077.8,0.0011]
[1772724830390,2.54727661,2079.0,2077.8,0.0011]
[1772724830616,3.2391193,2079.0,2077.8,0.0011]
[1772724831103,2.54727661,2078.4,2077.5,0.0011]
[1772724831292,3.2380193,2078.7,2077.5,0.0011]
[1772724832413,0.065536,2078.5,2077.5,0.0011]
[1772724833514,0.065536,2078.8,2077.5,2.51173753]
[1772724833808,0.065536,2078.6,2077.5,0.0011]
[1772724836110,0.67362388,2078.8,2077.5,0.0011]
[1772724836306,0.065536,2078.7,2077.5,0.0011]
[1772724836886,0.065536,2078.7,2077.5,2.51173753]
[1772724837105,0.6566973,2078.6,2077.5,0.0011]
[1772724837305,0.065536,2078.3,2077.5,0.0011]
[1772724837813,2.54727661,2078.4,2077.5,0.0011]
[1772724838202,0.065536,2078.3,2077.4,0.331137]
[1772724838390,2.54727661,2078.1,2077.4,0.331137]
[1772724838593,2.54969938,2077.8,2077.3,0.0011]
[1772724838785,0.70998271,2078.3,2076.2,2.55865617]
[1772724838786,0.065536,2077.9,2076.2,4.76166469]
[1772724839011,2.54969938,2077.3,2076.2,2.51063753]
[1772724839492,2.54969938,2077.3,2075.7,2.51063753]
[1772724839691,2.54969938,2077.3,2075.6,0.34725668]
[1772724839692,2.54969938,2077.3,2075.9,2.51063753]
[1772724839920,2.54969938,2077.3,2076.1,2.51063753]
[1772724840115,1.34427898,2077.6,2076.1,2.51063753]
[1772724840116,2.54969938,2077.5,2076.1,2.51063753]
[1772724840317,0.065536,2077.5,2076.3,2.51063753]
[1772724840526,0.065536,2078.0,2076.5,2.51063753]
[1772724840692,0.065536,2078.0,2076.7,2.51063753]
[1772724840891,0.6389528,2078.2,2076.8,2.85196539]
[1772724841100,0.065536,2078.3,2076.7,2.51063753]
[1772724841306,3.44842823,2078.4,2076.9,2.51063753]
[1772724841307,0.89963311,2078.4,2076.9,2.51063753]
[1772724841496,0.89963311,2078.4,2077.7,0.0011]
[1772724841699,0.89963311,2078.4,2077.7,2.51173753]
[1772724841897,1.20290622,2078.3,2077.7,2.51173753]
[1772724842194,1.20290622,2078.3,2077.7,0.0011]
[1772724842429,1.20290622,2078.3,2077.5,0.0011]
[1772724842611,0.065536,2078.2,2077.5,0.0011]
[1772724843013,1.20290622,2078.3,2077.5,0.0011]
[1772724843696,2.54879512,2078.1,2076.6,2.51063753]
[1772724843926,2.54879512,2078.1,2076.3,4.81608938]
[1772724843927,2.54879512,2078.1,2076.3,3.45506621]
[1772724843928,1.34317898,2077.7,2076.3,3.45506621]
[1772724844223,2.36102631,2077.5,2076.0,2.51063753]
[1772724844526,1.34317898,2077.7,2075.8,2.51063753]
[1772724844527,2.36102631,2077.2,2075.8,2.51063753]
[1772724845530,2.36102631,2077.2,2075.6,0.33346652]
[1772724845823,1.044,2077.1,2075.7,2.85055897]
[1772724846140,2.42656231,2077.3,2075.9,2.51063753]
[1772724846141,1.20354323,2077.2,2075.9,2.51063753]
[1772724847605,1.051,2077.1,2075.9,2.51063753]
[1772724847795,3.41202631,2077.1,2075.6,0.33346652]
[1772724848001,3.41202631,2077.1,2075.2,4.81864928]
[1772724848002,4.90982143,2076.8,2075.2,3.48718561]
[1772724848207,2.36102631,2076.7,2075.3,2.84749746]
[1772724848407,0.065536,2076.6,2075.2,1.20466725]
[1772724848609,2.42656231,2076.6,2075.2,1.20466725]
[1772724848800,0.065536,2076.4,2074.8,1.20488769]
[1772724849011,1.20365912,2077.0,2075.0,2.51063753]
[1772724849203,1.20365912,2077.0,2074.8,1.20488769]
[1772724849204,2.26881471,2077.7,2075.7,2.51063753]
[1772724849205,2.36102631,2077.5,2075.7,2.51063753]
[1772724849433,2.36102631,2077.5,2075.6,2.28251836]
[1772724849434,1.20331151,2077.6,2076.1,2.51063753]
[1772724849714,1.20331151,2077.6,2076.2,2.51063753]
[1772724849913,1.20331151,2077.6,2076.4,2.51063753]
[1772724850130,1.20331151,2077.6,2076.1,7.37491586]
[1772724850131,2.26331151,2077.6,2076.1,3.76280061]
[1772724850726,2.26331151,2077.6,2076.2,2.51063753]
[1772724851637,2.2150955,2077.6,2076.4,0.5]
[1772724854205,4.90982143,2077.2,2076.0,0.0011]
[1772724854445,1.20360117,2077.1,2076.0,0.0011]
[1772724855837,1.20360117,2077.1,2076.1,2.85850263]
[1772724856031,1.20360117,2077.1,2076.0,0.0011]
[1772724856835,1.20360117,2077.1,2076.0,2.51173753]
[1772724857135,2.28060117,2077.1,2076.0,2.51173753]
[1772724857328,1.20360117,2077.1,2076.1,5.37106924]
[1772724857526,1.20360117,2077.1,2076.1,2.51063753]
[1772724857710,1.20360117,2077.1,2076.2,2.86033416]
[1772724858037,1.20360117,2077.1,2076.0,0.0011]
[1772724858239,1.20445224,2077.4,2076.3,2.51063753]
[1772724858418,1.20445224,2077.4,2076.5,2.51063753]
[1772724858614,0.001,2077.4,2076.6,1.20389097]
[1772724858840,0.001,2077.4,2076.5,3.7145845]
[1772724859039,0.001,2077.4,2076.3,1.2040645]
[1772724859337,0.001,2077.4,2076.4,2.86149624]
[1772724859530,1.082,2077.4,2076.5,2.86167565]
[1772724859725,1.082,2077.4,2076.3,3.69638829]
[1772724859933,1.082,2077.4,2076.4,2.86195126]
[1772724860114,1.082,2077.4,2076.5,2.86195126]
[1772724860317,1.082,2077.4,2076.3,3.69638829]
[1772724860620,0.8249005,2077.7,2076.5,2.49232379]
[1772724860819,0.8249005,2078.0,2076.9,2.49232379]
[1772724861019,0.8249005,2078.0,2077.1,2.49232379]
[1772724861225,0.8249005,2078.0,2077.2,5.35566334]
[1772724861413,0.8249005,2078.0,2076.8,2.49232379]
[1772724861608,0.8249005,2078.0,2076.9,2.86359179]
[1772724861943,2.54879512,2077.9,2076.4,5.97882663]
[1772724862240,7.53610275,2077.9,2076.5,2.86377794]
[1772724862411,7.53610275,2077.9,2076.4,2.49232379]
[1772724862608,1.20325359,2077.7,2076.5,2.86469337]
[1772724862839,1.079,2077.6,2076.4,2.49232379]
[1772724863239,1.079,2077.6,2076.4,3.69632965]
[1772724863540,1.079,2077.6,2076.4,3.69632904]
[1772724864156,1.079,2077.6,2076.4,2.49232379]
[1772724864369,0.8249005,2077.5,2076.4,2.49232379]
[1772724864650,1.20342736,2077.4,2076.4,2.49232379]
[1772724865850,1.20342736,2077.4,2076.1,1.20414673]
[1772724866052,1.20342736,2077.4,2076.2,2.86710858]
[1772724866224,1.20342736,2077.4,2076.3,2.86710858]
[1772724866429,1.20342736,2077.4,2076.0,3.69765747]
[1772724866741,0.8249005,2077.1,2076.1,2.86892177]
[1772724867046,0.8249005,2077.1,2076.0,2.49342379]
[1772724867047,1.082,2077.0,2076.0,2.49342379]
[1772724867273,1.082,2077.0,2076.0,3.69766231]
[1772724867417,1.082,2077.0,2076.1,2.86974394]
[1772724867624,1.082,2077.0,2076.5,0.0011]
[1772724867929,3.63314102,2077.0,2076.0,0.0011]
[1772724868130,3.63314102,2077.0,2076.3,0.0011]
[1772724868438,2.55114102,2076.8,2076.3,0.0011]
[1772724868643,3.52587831,2077.0,2076.3,0.0011]
[1772724868843,3.75485809,2076.9,2076.3,0.0011]
[1772724869650,2.55114102,2076.5,2076.0,0.0011]
[1772724869850,1.084,2076.4,2076.0,0.0011]
[1772724870979,2.55114102,2076.2,2074.9,2.28251836]
[1772724871191,2.55114102,2075.8,2074.7,2.29347396]
[1772724871334,2.55114102,2075.5,2074.1,7.1036956]
[1772724871532,2.55114102,2075.2,2074.2,2.86867508]
[1772724871742,4.99501933,2075.6,2074.1,2.29347396]
[1772724871979,1.085,2075.5,2074.2,5.16237725]
[1772724872278,0.8249005,2075.2,2074.2,2.29347396]
[1772724872435,0.8249005,2075.2,2074.0,0.0011]
[1772724872766,2.55114102,2075.0,2074.0,0.0011]
[1772724873003,2.55114102,2074.7,2074.0,0.0011]
[1772724873136,2.55114102,2074.4,2073.8,0.0011]
[1772724873340,1.086,2074.3,2073.8,0.0011]
[1772724873641,1.086,2074.3,2073.5,0.0011]
[1772724873837,2.55114102,2074.1,2073.5,0.0011]
[1772724874477,1.086,2074.2,2073.5,0.0011]
[1772724874850,1.20540019,2074.0,2073.5,0.0011]
[1772724876179,2.03028572,2074.1,2073.5,0.0011]
[1772724876842,2.0302461,2074.1,2073.5,0.0011]
[1772724877242,1.087,2074.8,2073.7,0.5]
[1772724877472,1.087,2074.8,2073.8,2.29347396]
[1772724878339,6.26167431,2076.2,2073.7,0.5]
[1772724878585,1.20418091,2076.1,2074.2,2.29347396]
[1772724878761,1.20418091,2076.1,2074.4,2.29347396]
[1772724878964,1.20429693,2075.9,2074.6,2.29347396]
[1772724879794,5.90418772,2076.0,2074.6,2.29347396]
[1772724880086,1.087,2076.0,2074.6,2.29347396]
[1772724881087,1.087,2076.0,2074.8,2.29347396]
[1772724881687,0.32224477,2076.3,2075.0,2.29347396]
[1772724881899,1.2038593,2076.7,2075.0,2.29347396]
[1772724882056,1.2038593,2076.7,2075.2,2.29347396]
[1772724883088,1.20442736,2077.4,2075.6,2.29347396]
[1772724883258,2.55801171,2077.0,2075.6,2.29347396]
[1772724883457,1.087,2076.9,2075.6,2.29347396]
[1772724884057,3.53087831,2076.9,2075.0,2.29347396]
[1772724884655,5.00189002,2076.7,2075.0,2.29347396]
[1772724884878,2.44387831,2076.7,2075.0,2.29347396]
[1772724885082,1.26931103,2076.8,2075.2,2.29347396]
[1772724885862,1.087,2076.7,2075.2,2.29347396]
[1772724886264,2.55801171,2076.6,2075.2,2.29347396]
[1772724886459,2.55801171,2076.3,2074.8,1.20488193]
[1772724886690,2.44387831,2076.5,2074.9,2.29347396]
[1772724886860,0.065536,2076.6,2074.9,2.29347396]
[1772724887062,1.20394895,2076.5,2075.0,1.20481927]
[1772724887261,1.20394895,2076.5,2075.1,2.29347396]
[1772724888490,3.64782726,2076.5,2075.1,2.29347396]
[1772724889497,3.64782726,2076.5,2074.8,2.30058542]
[1772724889498,2.42014417,2076.4,2074.8,2.30058542]
[1772724889984,1.20394895,2076.5,2074.8,2.30058542]
[1772724889985,2.42014417,2076.2,2074.8,2.30058542]
[1772724890571,0.065536,2076.3,2074.8,2.30058542]
[1772724890994,1.086,2076.2,2074.8,2.30058542]
[1772724891197,0.065536,2076.4,2074.8,2.30058542]
[1772724891386,1.20406492,2076.3,2075.0,2.30058542]
[1772724892375,1.20406492,2076.3,2075.0,2.30168542]
[1772724892779,1.20406492,2076.3,2074.1,4.75592087]
[1772724892780,2.55325237,2076.0,2074.1,4.75592087]
[1772724892990,2.42014417,2075.6,2074.2,2.30058542]
[1772724893298,1.20458706,2075.4,2074.2,2.30058542]
[1772724893511,1.20458706,2075.4,2074.8,0.0011]
[1772724893670,1.086,2075.5,2074.8,0.0011]
[1772724893873,2.29053351,2075.5,2074.8,0.0011]
[1772724895704,5.12679927,2075.9,2074.8,0.0011]
[1772724895705,1.20422797,2076.1,2074.8,2.30168542]
[1772724896000,1.20422797,2076.1,2074.8,0.0011]
[1772724896001,2.42014417,2076.0,2074.8,0.0011]
[1772724897701,3.62449911,2075.8,2074.8,0.0011]
[1772724897873,2.42014417,2075.5,2074.5,0.0011]
[1772724898476,1.085,2075.7,2074.5,1.20620681]
[1772724898676,0.065536,2075.6,2074.5,1.20620681]
[1772724899372,1.085,2075.7,2074.5,1.20620681]
[1772724899577,1.20447099,2075.6,2074.5,0.0011]
[1772724900392,2.42014417,2075.3,2074.5,0.0011]
[1772724900593,1.085,2075.7,2074.5,2.30168542]
[1772724901106,0.065536,2076.0,2074.5,2.30168542]
[1772724901305,1.085,2076.0,2074.7,2.30058542]
[1772724901811,2.55325237,2075.4,2074.5,0.0011]
[1772724902034,3.50514417,2075.3,2074.5,0.0011]
[1772724902527,0.065536,2075.6,2074.5,0.0011]
[1772724902817,4.97339654,2075.4,2074.5,0.0011]
[1772724903612,1.085,2075.3,2074.5,1.2061864]
[1772724903789,0.065536,2075.6,2074.5,2.30168542]
[1772724903790,1.20455854,2075.5,2074.5,2.30168542]
[1772724903976,2.28955854,2075.5,2074.5,2.30168542]
[1772724904185,0.065536,2076.0,2074.5,2.30168542]
[1772724904186,4.81695882,2076.1,2074.5,2.30168542]
[1772724904404,1.27071691,2076.2,2074.5,2.30168542]
[1772724904405,0.065536,2076.0,2074.5,2.30168542]
[1772724904614,0.001,2076.2,2074.8,2.45007041]
[1772724904920,1.20513448,2076.2,2075.0,2.30058542]
[1772724905125,3.62527865,2076.2,2074.6,2.30058542]
[1772724905422,2.42014417,2076.1,2074.6,2.30058542]
[1772724905630,4.97339654,2075.9,2074.5,0.0011]
[1772724905780,2.55325237,2075.6,2074.7,0.0011]
[1772724905978,4.97339654,2075.2,2074.2,0.0011]
[1772724906199,1.073,2075.1,2074.2,0.0011]
[1772724907005,2.42014417,2075.2,2074.2,0.0011]
[1772724907210,1.074,2075.1,2074.2,0.0011]
[1772724907385,4.97339654,2075.2,2074.2,0.0011]
[1772724907709,1.075,2075.1,2074.2,0.0011]
[1772724907912,1.20458706,2075.4,2074.2,2.30168542]
[1772724908205,2.27958706,2075.4,2074.2,2.30168542]
[1772724908510,2.27958706,2075.4,2074.4,2.30058542]
[1772724908712,2.27958706,2075.4,2074.2,0.0011]
[1772724908923,0.065536,2075.8,2074.3,2.8677408]
[1772724909098,1.077,2076.2,2074.5,2.30058542]
[1772724909411,2.28112433,2076.2,2075.0,2.30058542]
[1772724909776,2.28112433,2076.2,2074.6,3.5056302]
[1772724909777,2.42014417,2076.0,2074.6,3.5056302]
[1772724909983,2.42014417,2076.0,2074.6,3.50562223]
[1772724910279,2.42014417,2076.0,2074.6,2.30058542]
[1772724910487,2.55325237,2075.8,2074.3,1.20522585]
[1772724910687,5.19233527,2075.9,2074.5,2.30058542]
[1772724910916,1.077,2075.8,2074.5,2.30058542]
[1772724911291,1.077,2075.8,2074.7,2.30058542]
[1772724911489,0.065536,2076.1,2074.7,2.30058542]
[1772724911707,1.077,2076.0,2074.7,2.30058542]
[1772724912014,3.6244411,2075.9,2074.5,1.20506468]
[1772724912332,3.6244411,2075.9,2074.5,3.5056501]
[1772724912508,1.20429693,2075.9,2074.7,2.30058542]
[1772724912877,1.078,2075.8,2074.7,2.30058542]
[1772724913210,1.078,2075.8,2074.4,1.20515595]
[1772724913912,1.20441296,2075.7,2074.3,3.50577263]
[1772724914109,3.62455713,2075.7,2074.3,3.50580083]
[1772724914294,2.48568017,2075.6,2074.3,3.50580715]
[1772724914493,2.48568017,2075.6,2074.3,3.45760276]
[1772724914694,0.065536,2075.6,2074.3,3.45760276]
[1772724915100,1.079,2075.5,2074.4,5.1729334]
[1772724915304,1.079,2075.5,2074.5,5.1729334]
[1772724915483,1.20441296,2075.7,2074.7,2.30058542]
[1772724915687,1.20441296,2075.7,2074.8,2.87358625]
[1772724915889,4.81765187,2075.8,2074.8,1.20493541]
[1772724916101,1.20518091,2076.2,2074.9,2.30058542]
[1772724916302,4.81675061,2076.1,2075.0,2.87361483]
[1772724916524,4.81675061,2076.1,2075.0,2.30058542]
[1772724917820,4.81675061,2076.1,2075.1,1.20476121]
[1772724917988,0.001,2076.0,2075.1,1.20476121]
[1772724918191,0.001,2076.0,2075.0,0.0011]
[1772724919031,1.08,2075.9,2075.0,1.20591281]
[1772724919234,1.08,2075.9,2075.0,0.0011]
[1772724919427,2.35642946,2075.7,2074.8,0.0011]
[1772724919725,0.066536,2076.0,2074.8,1.20602351]
[1772724919726,0.001,2076.0,2074.8,1.20602351]
[1772724919892,0.065536,2075.8,2074.8,0.0011]
[1772724920090,2.28429693,2075.9,2074.8,0.0011]
[1772724920616,2.35642946,2075.8,2074.8,0.0011]
[1772724921425,5.02980034,2075.9,2074.8,0.0011]
[1772724922191,1.20429693,2075.9,2074.8,2.36164943]
[1772724922403,1.081,2075.8,2074.9,2.87860388]
[1772724922614,1.081,2075.8,2074.8,2.36164943]
[1772724922909,3.43742946,2075.8,2074.8,0.0011]
[1772724923517,1.20429693,2075.9,2074.9,2.36054943]
[1772724923908,1.20429693,2075.9,2075.0,2.8784605]
[1772724924109,4.81818772,2076.0,2075.0,1.20481927]
[1772724924311,4.81818772,2076.0,2074.9,3.56539899]
[1772724924507,4.81818772,2076.0,2074.9,3.56541982]
[1772724924728,4.81818772,2076.0,2074.9,2.36054943]
[1772724924923,9.72786955,2076.0,2074.8,0.0011]
[1772724925122,2.35642946,2075.7,2074.8,0.0011]
[1772724925433,0.065536,2075.8,2074.8,0.0011]
[1772724925640,4.81818772,2076.0,2074.8,1.20603272]
[1772724925926,1.082,2075.7,2074.8,3.56658215]
[1772724926139,1.20447099,2075.6,2074.8,3.56658215]
[1772724926305,1.20447099,2075.6,2074.8,0.0011]
[1772724927704,4.81965815,2075.5,2074.5,0.0011]
[1772724927901,1.082,2075.4,2074.5,0.0011]
[1772724928097,1.20464511,2075.3,2074.5,0.0011]
[1772724929306,1.083,2075.2,2074.5,0.0011]
[1772724929552,1.083,2075.2,2074.5,2.35979902]
[1772724929720,1.083,2075.1,2074.5,2.35979902]
[1772724929907,4.81765227,2075.7,2074.5,2.35979902]
[1772724930238,1.20452902,2075.5,2074.6,1.20505157]
[1772724930620,1.083,2075.4,2074.6,3.56375059]
[1772724930827,1.083,2075.4,2074.7,2.35869902]
[1772724931429,1.083,2075.4,2074.5,1.20617172]
[1772724931627,1.083,2075.4,2074.5,1.20619892]
[1772724931838,1.083,2075.4,2074.5,0.0011]
[1772724932245,1.20464511,2075.3,2074.5,0.0011]
[1772724932825,2.28864511,2075.3,2074.5,0.0011]
[1772724933330,4.48951489,2075.3,2074.2,0.0011]
[1772724933644,4.75412215,2074.9,2073.8,0.64980064]
[1772724933843,1.084,2074.8,2073.8,0.64980064]
[1772724934140,1.084,2074.8,2073.8,1.85530717]
[1772724934345,1.20499349,2074.7,2073.8,0.64980064]
[1772724934520,0.065536,2074.6,2073.8,0.64980064]
[1772724934905,0.065536,2074.6,2073.7,0.0011]
[1772724935911,2.55325237,2074.2,2073.5,0.0011]
[1772724936134,3.28486978,2074.1,2073.5,0.0011]
[1772724936322,1.20540019,2074.0,2073.5,0.0011]
[1772724937358,1.20540019,2074.0,2073.5,2.35979902]
[1772724937359,1.085,2074.0,2073.5,2.35979902]
[1772724937867,0.065536,2074.7,2073.5,2.35979902]
[1772724937868,1.20470316,2075.2,2073.5,2.35979902]